bitfinex/quotes_ETHUSD_20230110
["timestamp","ask_amount","ask_price","bid_price","bid_amount"]
[1673346624506,3.4971824,1334.3,1334.0,14.3713727]
[1673346624663,1.25346922,1334.3,1334.0,14.3713727]
[1673346624869,10.9917724,1334.3,1334.0,6.8752327]
[1673346625128,10.9957724,1334.3,1334.0,6.8752327]
[1673346625516,18.4903624,1334.3,1334.0,6.8752327]
[1673346625728,18.4903624,1334.3,1334.0,3.89366064]
[1673346625977,10.9957724,1334.3,1334.0,3.79766064]
[1673346626196,10.9957724,1334.3,1333.9,18.52175]
[1673346626378,21.30074131,1334.3,1333.9,4.14366064]
[1673346626712,21.30074131,1334.3,1333.9,11.54424064]
[1673346626916,21.30074131,1334.3,1333.9,11.64024064]
[1673346628448,25.02842865,1334.3,1333.9,11.64024064]
[1673346629339,25.02842865,1334.3,1333.9,181.64024064]
[1673346629573,18.4903024,1334.3,1333.9,114.64024064]
[1673346629765,18.4903024,1334.3,1333.9,122.13705064]
[1673346629936,21.30074131,1334.3,1333.9,19.13705064]
[1673346630149,21.30074131,1334.3,1334.0,32.0]
[1673346630372,10.9957424,1334.3,1334.0,35.89366064]
[1673346630565,10.9957424,1334.3,1334.0,13.88986064]
[1673346631390,10.9957424,1334.3,1334.0,11.38986064]
[1673346631812,10.9957424,1334.3,1334.0,3.89366064]
[1673346632021,10.9957424,1334.3,1334.0,3.79766064]
[1673346632438,3.5011824,1334.3,1334.0,11.29376064]
[1673346632647,3.5011824,1334.3,1334.0,11.38976064]
[1673346632648,3.4971824,1334.3,1334.0,11.38976064]
[1673346633753,3.4971824,1334.3,1334.0,16.5530477]
[1673346634336,0.06,1334.4,1334.2,6.48566064]
[1673346634570,0.37661854,1334.5,1334.3,31.20314923]
[1673346634752,0.37661854,1334.5,1334.4,11.27745759]
[1673346634965,0.37661854,1334.5,1334.4,38.28930167]
[1673346635217,0.32586568,1334.7,1334.5,4.26093414]
[1673346635433,5.68e-06,1334.7,1334.6,40.64471202]
[1673346635751,0.31760948,1334.9,1334.8,34.468]
[1673346635963,0.31760948,1334.9,1334.8,34.43201064]
[1673346636284,2.11660948,1334.9,1334.8,43.096]
[1673346636500,2.11660948,1334.9,1334.8,0.096]
[1673346636501,17.69605701,1334.9,1334.8,0.096]
[1673346636704,17.70005701,1334.9,1334.7,0.002]
[1673346636857,0.67420948,1334.9,1334.7,0.002]
[1673346637083,0.31760948,1334.9,1334.7,0.002]
[1673346638572,0.31760948,1334.9,1334.7,3.79966064]
[1673346638808,0.31760948,1334.9,1334.7,0.002]
[1673346639132,15.30003948,1334.9,1334.7,0.002]
[1673346639350,9.02175395,1334.8,1334.7,0.002]
[1673346639500,9.02575395,1334.8,1334.7,0.002]
[1673346639706,16.51750395,1334.8,1334.7,0.002]
[1673346639915,11.52575395,1334.8,1334.7,0.002]
[1673346640170,19.01750395,1334.8,1334.7,0.002]
[1673346640373,11.52575395,1334.8,1334.7,0.002]
[1673346641002,19.01750395,1334.8,1334.7,0.002]
[1673346641242,11.52575395,1334.8,1334.7,0.002]
[1673346641408,19.01750395,1334.8,1334.7,0.002]
[1673346641612,26.50925395,1334.8,1334.7,0.002]
[1673346642578,26.86275395,1334.8,1334.7,0.002]
[1673346643451,26.86475395,1334.8,1334.7,0.002]
[1673346643761,16.87100395,1334.8,1334.7,0.002]
[1673346643980,24.36275395,1334.8,1334.7,0.002]
[1673346644341,16.87100395,1334.8,1334.7,0.002]
[1673346644594,14.9875,1334.8,1334.7,0.002]
[1673346644759,22.47925,1334.8,1334.7,0.002]
[1673346645433,14.9875,1334.8,1334.7,0.002]
[1673346645814,0.004,1334.8,1334.7,0.002]
[1673346646073,8.52430948,1334.9,1334.8,0.004]
[1673346646287,8.52430948,1334.9,1334.8,1.803]
[1673346646288,0.32160948,1334.9,1334.8,1.803]
[1673346646446,0.31760948,1334.9,1334.8,0.004]
[1673346646654,27.32436501,1334.9,1334.8,0.004]
[1673346646864,24.82836501,1334.9,1334.8,0.004]
[1673346647919,25.18726501,1334.9,1334.8,0.004]
[1673346648134,2.5,1334.8,1334.7,0.002]
[1673346648431,22.8445455,1334.8,1334.7,0.002]
[1673346648571,7.8650455,1334.8,1334.7,0.002]
[1673346648916,5.3650455,1334.8,1334.7,0.002]
[1673346649075,0.3646,1334.8,1334.7,0.002]
[1673346649280,0.3606,1334.8,1334.7,0.002]
[1673346652259,0.74848597,1334.8,1334.7,0.002]
[1673346652678,23.22373597,1334.8,1334.7,0.002]
[1673346652906,23.22773597,1334.8,1334.7,0.002]
[1673346653064,26.72284907,1334.8,1334.7,0.002]
[1673346653758,26.36224907,1334.8,1334.7,0.002]
[1673346654064,26.31224907,1334.8,1334.7,0.002]
[1673346654241,35.78834907,1334.8,1334.7,0.002]
[1673346654446,37.13634907,1334.8,1334.7,0.002]
[1673346656166,38.48434907,1334.8,1334.7,0.002]
[1673346656478,2.5,1334.7,1334.3,29.0]
[1673346656727,2.5,1334.7,1334.3,29.096]
[1673346656728,23.82832,1334.5,1334.3,29.096]
[1673346656943,23.83232,1334.5,1334.3,0.096]
[1673346657106,17.371232,1334.4,1334.0,0.5624]
[1673346657316,24.869232,1334.4,1334.0,4.36006064]
[1673346657576,7.498,1334.4,1334.0,61.85617064]
[1673346657735,7.49803,1334.4,1334.0,76.38939304]
[1673346657947,7.49803,1334.4,1334.0,55.38939304]
[1673346658200,7.49803,1334.4,1334.0,11.39689304]
[1673346658391,16.34006,1334.4,1334.0,11.39689304]
[1673346658611,16.34006,1334.4,1334.0,15.40437434]
[1673346659207,23.83409,1334.4,1334.0,7.90826434]
[1673346659874,23.83409,1334.4,1334.0,15.40443434]
[1673346660593,23.83409,1334.4,1334.0,7.90826434]
[1673346660805,24.19799,1334.4,1334.1,12.0]
[1673346661011,24.19799,1334.4,1334.1,12.096]
[1673346661430,24.19799,1334.4,1334.2,13.0]
[1673346661645,24.19799,1334.4,1334.2,13.096]
[1673346662063,24.19799,1334.4,1334.2,0.096]
[1673346662064,16.70396,1334.4,1334.2,0.096]
[1673346662276,21.617642,1334.4,1334.1,12.096]
[1673346663352,16.70396,1334.4,1334.2,9.0]
[1673346663572,9.20993,1334.4,1334.2,9.096]
[1673346663740,9.20993,1334.4,1334.2,8.096]
[1673346663951,9.20993,1334.4,1334.2,0.096]
[1673346664165,16.70393,1334.4,1334.1,0.096]
[1673346664397,21.617595,1334.4,1334.0,10.8063624]
[1673346664727,21.617595,1334.4,1334.1,13.0]
[1673346664918,21.617595,1334.4,1334.1,13.096]
[1673346665250,21.617595,1334.4,1334.1,9.096]
[1673346665251,14.123565,1334.4,1334.1,9.096]
[1673346665411,9.2099,1334.4,1334.1,9.096]
[1673346665885,16.7039,1334.4,1334.2,24.0]
[1673346666198,16.7039,1334.4,1334.2,19.096]
[1673346666565,16.7039,1334.4,1334.2,0.096]
[1673346666776,24.1979,1334.4,1334.1,0.096]
[1673346666993,29.111573,1334.4,1334.0,0.0071224]
[1673346667312,29.111573,1334.4,1334.0,14.0071224]
[1673346667524,29.111573,1334.4,1334.0,14.1031224]
[1673346669661,14.99024,1334.2,1334.0,14.1031224]
[1673346669842,14.99424,1334.2,1334.0,14.1031224]
[1673346670249,14.99424,1334.2,1334.0,11.1031224]
[1673346670454,18.732159,1334.2,1334.0,11.1031224]
[1673346670704,23.83504,1334.1,1334.0,11.1031224]
[1673346670881,23.83904,1334.1,1334.0,0.1031224]
[1673346671108,23.83904,1334.1,1334.0,0.0071224]
[1673346674713,25.54814,1334.1,1334.0,0.0071224]
[1673346675022,30.9473579,1334.1,1334.0,0.0071224]
[1673346675393,34.74501854,1334.1,1334.0,0.0071224]
[1673346676545,34.74701854,1334.1,1334.0,0.0071224]
[1673346676751,34.74501854,1334.1,1334.0,0.0071224]
[1673346678278,7.1123179,1334.1,1334.0,0.0071224]
[1673346678492,14.6079979,1334.1,1334.0,0.0071224]
[1673346678804,29.5993579,1334.1,1334.0,0.0071224]
[1673346679908,1.7131,1334.1,1334.0,26.0071224]
[1673346680119,8.84368,1334.1,1334.0,26.1031224]
[1673346680374,8.84368,1334.1,1334.0,0.1031224]
[1673346680375,16.34336,1334.1,1334.0,0.1031224]
[1673346680585,16.34336,1334.1,1334.0,0.00473519]
[1673346681327,23.83904,1334.1,1334.0,0.00473519]
[1673346681542,27.26055636,1334.1,1334.0,0.00473519]
[1673346684742,19.76487636,1334.1,1334.0,0.00473519]
[1673346685589,16.34336,1334.1,1334.0,0.00473519]
[1673346685806,16.34336,1334.1,1334.0,9.29998519]
[1673346685807,0.004,1334.1,1334.0,9.29998519]
[1673346686055,17.988,1334.5,1334.0,81.18614583]
[1673346686266,17.924,1334.5,1334.2,0.066]
[1673346686478,33.28399,1334.5,1334.2,0.066]
[1673346687430,40.77744,1334.5,1334.1,0.75211901]
[1673346687584,40.40434,1334.5,1334.1,32.98113443]
[1673346687796,40.40434,1334.5,1334.1,33.07713443]
[1673346688373,40.40434,1334.5,1334.1,3.07713443]
[1673346688702,40.40434,1334.5,1334.1,2.98113443]
[1673346689046,40.40434,1334.5,1334.1,49.98113443]
[1673346689323,41.75234,1334.5,1334.1,2.32501542]
[1673346689472,41.75234,1334.5,1334.0,21.53803519]
[1673346689473,46.719772,1334.5,1334.0,21.53803519]
[1673346689684,46.719772,1334.5,1334.0,25.33569583]
[1673346690267,47.085372,1334.5,1334.0,25.33569583]
[1673346690780,47.085372,1334.5,1334.1,31.0]
[1673346690976,14.98912,1334.3,1334.1,31.096]
[1673346691309,22.48568,1334.3,1334.1,31.096]
[1673346691623,22.48568,1334.3,1334.1,0.096]
[1673346691782,22.48568,1334.3,1334.0,18.47503519]
[1673346691993,22.48568,1334.3,1334.1,14.0]
[1673346691994,1.342,1334.2,1334.1,14.0]
[1673346692246,1.342,1334.2,1334.1,0.096]
[1673346692247,25.17336,1334.2,1334.1,0.096]
[1673346692459,24.17536,1334.2,1334.0,0.00473519]
[1673346692676,1.348,1334.1,1334.0,0.00473519]
[1673346692834,8.84368,1334.1,1334.0,0.00473519]
[1673346693047,8.84568,1334.1,1334.0,12.00473519]
[1673346693299,8.84568,1334.1,1334.0,12.10073519]
[1673346693477,7.49768,1334.1,1334.0,12.10073519]
[1673346694829,26.219832,1334.1,1334.0,12.10073519]
[1673346695038,26.580132,1334.1,1334.0,12.10073519]
[1673346695292,27.919132,1334.1,1334.0,12.10073519]
[1673346695454,27.919132,1334.1,1334.0,0.10073519]
[1673346695681,38.253932,1334.1,1334.0,0.00473519]
[1673346696038,42.05159264,1334.1,1334.0,0.00473519]
[1673346697535,31.71679264,1334.1,1334.0,0.00473519]
[1673346697717,34.71679264,1334.1,1334.0,0.00473519]
[1673346698028,34.71679264,1334.1,1334.0,35.00473519]
[1673346698243,34.71679264,1334.1,1334.0,35.10073519]
[1673346698451,34.71679264,1334.1,1334.0,0.10073519]
[1673346698767,34.71679264,1334.1,1334.0,0.00473519]
[1673346698975,25.88211264,1334.1,1334.0,0.00473519]
[1673346699205,33.37779264,1334.1,1334.0,0.00473519]
[1673346699361,29.580132,1334.1,1334.0,0.00473519]
[1673346700342,34.72379264,1334.1,1334.0,0.00473519]
[1673346702077,23.430452,1334.1,1334.0,0.00473519]
[1673346702504,15.934772,1334.1,1334.0,0.00473519]
[1673346702721,30.926132,1334.1,1334.0,0.00473519]
[1673346703339,23.430452,1334.1,1334.0,0.00473519]
[1673346703833,18.434772,1334.1,1334.0,0.00473519]
[1673346704125,8.439092,1334.1,1334.0,0.00473519]
[1673346704284,29.219832,1334.1,1334.0,0.00473519]
[1673346704496,29.599532,1334.1,1334.0,0.00473519]
[1673346704917,29.219832,1334.1,1334.0,0.00473519]
[1673346706110,37.5441432,1334.1,1334.0,0.00473519]
[1673346706840,45.1044432,1334.1,1334.0,0.00473519]
[1673346707227,37.5441432,1334.1,1334.0,0.00473519]
[1673346712736,37.5441432,1334.1,1334.0,0.00184042]
[1673346713485,41.73081587,1334.1,1334.0,0.00184042]
[1673346713790,51.88296994,1334.1,1334.0,0.00184042]
[1673346713965,52.11296994,1334.1,1334.0,0.00184042]
[1673346714633,48.17222963,1334.1,1334.0,0.00184042]
[1673346715015,51.53648206,1334.1,1334.0,0.00184042]
[1673346716516,48.17222963,1334.1,1334.0,0.00184042]
[1673346716724,48.17222963,1334.1,1333.5,0.10224872]
[1673346716725,29.98836,1333.9,1333.5,0.00624872]
[1673346716936,2.685,1333.6,1333.5,0.00624872]
[1673346717189,25.1805,1333.6,1333.5,0.00624872]
[1673346717409,25.1845,1333.6,1333.5,0.00624872]
[1673346717565,25.1825,1333.6,1333.5,0.00624872]
[1673346719805,29.45303,1333.6,1333.5,0.00624872]
[1673346721719,29.45303,1333.6,1333.5,6.00624872]
[1673346721880,29.45303,1333.6,1333.5,6.10224872]
[1673346722350,29.45303,1333.6,1333.5,0.10224872]
[1673346722511,29.45303,1333.6,1333.5,0.00624872]
[1673346722721,21.95453,1333.6,1333.5,0.00624872]
[1673346722981,14.45603,1333.6,1333.5,0.00624872]
[1673346723192,21.95453,1333.6,1333.5,0.00624872]
[1673346723513,16.347,1333.6,1333.5,12.00624872]
[1673346723664,8.8485,1333.6,1333.5,12.10224872]
[1673346723891,0.002,1333.6,1333.5,1.90124872]
[1673346724096,0.4032,1333.9,1333.6,0.002]
[1673346724097,10.0775,1333.9,1333.6,0.002]
[1673346724306,0.002,1333.9,1333.6,28.93244287]
[1673346724628,30.342,1334.0,1333.7,29.0]
[1673346724991,30.342,1334.0,1333.7,36.59389]
[1673346724992,0.002,1334.0,1333.7,36.59389]
[1673346725310,10.4075,1334.1,1333.8,44.0]
[1673346725512,10.4075,1334.1,1333.8,44.096]
[1673346725889,10.4075,1334.1,1333.8,0.096]
[1673346726096,15.17422703,1334.1,1333.8,7.49712]
[1673346726313,0.396,1334.1,1333.8,48.59312]
[1673346726518,0.394,1334.1,1333.8,41.096]
[1673346726881,7.8898,1334.1,1333.8,0.096]
[1673346727045,7.8918,1334.1,1333.7,15.09115]
[1673346727669,7.8918,1334.1,1333.8,44.0]
[1673346727879,7.8918,1334.1,1333.8,44.096]
[1673346728136,0.396,1334.1,1333.8,69.45214325]
[1673346728309,0.394,1334.1,1333.8,17.95477325]
[1673346728528,3.394,1334.1,1333.9,45.0]
[1673346728721,3.394,1334.1,1333.9,45.096]
[1673346728931,3.0,1334.1,1333.9,45.096]
[1673346729399,3.0,1334.1,1333.9,0.096]
[1673346729563,3.0,1334.1,1333.8,2.96009325]
[1673346729771,3.0,1334.1,1333.8,10.36143325]
[1673346729982,3.0,1334.1,1333.9,23.0]
[1673346730239,3.0,1334.1,1333.9,23.096]
[1673346730857,3.0,1334.1,1333.9,0.096]
[1673346731067,3.0,1334.1,1333.8,17.95435325]
[1673346731462,3.0,1334.1,1333.9,21.0]
[1673346731676,3.0,1334.1,1333.9,21.096]
[1673346732396,3.0,1334.1,1333.9,0.096]
[1673346732606,3.0,1334.1,1333.8,10.45722325]
[1673346733027,10.49579,1334.1,1333.9,25.0]
[1673346733394,10.49779,1334.1,1333.9,25.096]
[1673346733785,10.49779,1334.1,1333.9,0.096]
[1673346734107,3.002,1334.1,1333.8,10.45722325]
[1673346734319,3.0,1334.1,1333.8,10.45722325]
[1673346734531,3.0,1334.1,1333.9,43.0]
[1673346734742,3.0,1334.1,1333.9,43.096]
[1673346734955,3.0,1334.1,1333.9,26.096]
[1673346735284,3.0,1334.1,1333.9,0.096]
[1673346735601,3.0,1334.1,1333.8,10.45722325]
[1673346735815,10.49571,1334.1,1333.8,10.45722325]
[1673346736122,17.99342,1334.1,1333.9,41.0]
[1673346736290,28.29275032,1334.1,1333.9,41.096]
[1673346736752,28.29275032,1334.1,1333.9,0.096]
[1673346736753,20.79704032,1334.1,1333.9,0.096]
[1673346736930,24.65542235,1334.1,1333.7,10.56386]
[1673346737284,32.15110235,1334.1,1333.8,37.0]
[1673346737494,32.15110235,1334.1,1333.8,37.096]
[1673346737811,32.15110235,1334.1,1333.8,27.096]
[1673346738218,32.15110235,1334.1,1333.9,18.0]
[1673346738431,32.15110235,1334.1,1333.9,18.096]
[1673346738596,24.65539235,1334.1,1333.9,18.096]
[1673346738811,24.65539235,1334.1,1333.9,0.096]
[1673346739019,32.15107235,1334.1,1333.8,0.096]
[1673346739261,24.65536235,1334.1,1333.9,30.0]
[1673346739488,24.65536235,1334.1,1333.9,0.096]
[1673346739652,9.66400235,1334.1,1333.7,40.0618]
[1673346739873,3.002,1334.1,1333.8,41.49731]
[1673346740079,17.9935,1334.1,1333.9,23.0]
[1673346740297,25.48925,1334.1,1333.9,23.096]
[1673346740541,28.29287032,1334.1,1333.9,23.096]
[1673346740732,33.03563535,1334.1,1333.9,0.096]
[1673346740908,33.03563535,1334.1,1333.8,23.096]
[1673346741121,33.03563535,1334.1,1333.8,0.096]
[1673346741367,30.23201503,1334.1,1333.9,30.0]
[1673346741579,30.23201503,1334.1,1333.9,30.096]
[1673346741798,22.73626503,1334.1,1333.9,0.096]
[1673346741997,22.73626503,1334.1,1333.7,16.468014]
[1673346742207,22.73626503,1334.1,1333.9,29.0]
[1673346742418,22.73626503,1334.1,1333.9,29.096]
[1673346742610,22.73626503,1334.1,1333.9,0.096]
[1673346742823,22.73626503,1334.1,1333.8,2.5]
[1673346743058,17.9935,1334.1,1333.8,2.5]
[1673346743269,17.9935,1334.1,1333.8,48.5]
[1673346743434,17.9935,1334.1,1333.8,48.596]
[1673346743854,17.9935,1334.1,1333.9,21.0]
[1673346744067,17.9935,1334.1,1333.9,0.096]
[1673346744277,17.9935,1334.1,1333.7,16.468014]
[1673346744537,17.9935,1334.1,1333.8,23.1468014]
[1673346744744,17.9935,1334.1,1333.8,23.2428014]
[1673346745278,10.49775,1334.1,1333.9,32.0]
[1673346745452,10.49775,1334.1,1333.9,32.096]
[1673346745648,0.002,1334.1,1333.9,32.096]
[1673346745853,28.02384032,1334.2,1333.9,4.47001414]
[1673346746058,28.02384032,1334.2,1333.8,17.5318414]
[1673346746059,27.62534032,1334.2,1333.8,17.5318414]
[1673346746825,24.82172,1334.2,1333.9,46.0]
[1673346747013,9.831,1334.2,1333.9,7.59269]
[1673346747380,9.831,1334.2,1333.9,10.09550114]
[1673346747537,9.831,1334.2,1333.9,12.59550114]
[1673346747881,17.32613,1334.2,1333.9,10.09550114]
[1673346748736,9.831,1334.2,1333.9,12.59550114]
[1673346749166,17.3262,1334.2,1333.9,10.09550114]
[1673346749748,9.831,1334.2,1333.9,10.09550114]
[1673346750427,9.831,1334.2,1333.9,12.59550114]
[1673346750802,9.831,1334.2,1333.9,10.09550114]
[1673346751161,9.831,1334.2,1334.0,22.0]
[1673346751314,0.002,1334.2,1334.0,37.0881]
[1673346751665,0.002,1334.3,1334.2,1.801]
[1673346751877,40.63908032,1334.5,1334.2,1.801]
[1673346752109,10.29908032,1334.5,1334.2,1.801]
[1673346752259,0.002,1334.5,1334.2,31.801]
[1673346752629,0.619,1334.5,1334.3,58.0]
[1673346752940,0.619,1334.5,1334.3,58.096]
[1673346753263,0.619,1334.5,1334.3,1.7428014]
[1673346753436,0.619,1334.5,1334.3,1.6468014]
[1673346753873,0.619,1334.5,1334.3,37.0]
[1673346754093,0.619,1334.5,1334.3,37.096]
[1673346754264,0.619,1334.5,1334.3,0.096]
[1673346754474,0.619,1334.5,1334.2,17.46172]
[1673346755047,0.619,1334.5,1334.3,36.0]
[1673346755257,0.619,1334.5,1334.3,40.24562254]
[1673346755585,0.619,1334.5,1334.3,19.23456254]
[1673346756123,0.619,1334.5,1334.4,24.0]
[1673346756410,0.619,1334.5,1334.4,24.096]
[1673346756631,0.619,1334.5,1334.4,55.096]
[1673346756846,0.619,1334.5,1334.4,58.74091358]
[1673346757146,0.619,1334.5,1334.4,69.23491358]
[1673346757553,0.619,1334.5,1334.4,65.53857422]
[1673346757745,0.619,1334.5,1334.4,80.52657422]
[1673346760317,0.619,1334.5,1334.4,73.03257422]
[1673346762377,0.619,1334.5,1334.4,80.52657422]
[1673346762721,0.619,1334.5,1334.4,73.03257422]
[1673346763204,0.619,1334.5,1334.4,73.02861645]
[1673346763409,0.619,1334.5,1334.4,80.52261645]
[1673346763642,0.619,1334.5,1334.4,73.02861645]
[1673346764507,0.619,1334.5,1334.4,80.52261645]
[1673346765039,0.619,1334.5,1334.4,73.02861645]
[1673346766781,0.619,1334.5,1334.4,65.53461645]
[1673346767416,0.619,1334.5,1334.4,73.02861645]
[1673346768931,0.619,1334.5,1334.4,65.53461645]
[1673346773296,0.621,1334.5,1334.4,65.53261645]
[1673346773545,0.619,1334.5,1334.4,65.53461645]
[1673346774969,0.619,1334.5,1334.4,73.02861645]
[1673346775600,0.619,1334.5,1334.4,65.53461645]
[1673346776164,0.619,1334.5,1334.4,73.02861645]
[1673346776335,0.619,1334.5,1334.4,65.53461645]
[1673346778174,0.619,1334.5,1334.4,61.73695581]
[1673346778338,8.11244,1334.5,1334.4,61.73695581]
[1673346778551,0.621,1334.5,1334.4,61.73695581]
[1673346778754,0.619,1334.5,1334.4,61.73695581]
[1673346780166,0.619,1334.5,1334.4,36.73695581]
[1673346780358,0.619,1334.5,1334.4,33.09204223]
[1673346785930,0.619,1334.5,1334.4,33.08917227]
[1673346789103,15.60788,1334.5,1334.4,33.08717227]
[1673346789271,15.60788,1334.5,1334.4,33.08917227]
[1673346790099,8.11444,1334.5,1334.4,33.08917227]
[1673346790306,10.91806032,1334.5,1334.4,33.08917227]
[1673346790985,13.51487835,1334.5,1334.4,33.08917227]
[1673346792093,21.00831835,1334.5,1334.4,33.08917227]
[1673346792416,13.51487835,1334.5,1334.4,33.08917227]
[1673346793068,21.00831835,1334.5,1334.4,33.08917227]
[1673346793294,13.51487835,1334.5,1334.4,33.08917227]
[1673346793876,6.02143835,1334.5,1334.4,33.08917227]
[1673346794092,28.50175835,1334.5,1334.4,33.08917227]
[1673346794529,25.69813803,1334.5,1334.4,33.08917227]
[1673346794939,28.50701437,1334.5,1334.4,33.08917227]
[1673346795457,25.69813803,1334.5,1334.4,33.08917227]
[1673346797287,28.50662413,1334.5,1334.4,33.08917227]
[1673346797997,25.69813803,1334.5,1334.4,33.08917227]
[1673346798559,30.40848242,1334.5,1334.4,33.08917227]
[1673346800498,34.0242204,1334.5,1334.4,33.08917227]
[1673346800708,44.25654036,1334.5,1334.4,33.08917227]
[1673346800917,44.25654036,1334.5,1334.4,0.08917227]
[1673346800918,43.89219597,1334.5,1334.4,0.08917227]
[1673346801132,51.86469597,1334.5,1333.9,8.9066]
[1673346801370,4.15514784,1334.3,1333.9,8.99577227]
[1673346801581,4.15514784,1334.3,1334.0,41.0]
[1673346801582,22.48572,1334.2,1334.0,41.0]
[1673346801872,22.48772,1334.2,1334.0,41.08917227]
[1673346802110,25.90128478,1334.2,1334.0,22.08917227]
[1673346802450,25.90128478,1334.2,1334.1,12.0]
[1673346802656,25.90128478,1334.2,1334.1,12.08917227]
[1673346802865,25.90128478,1334.2,1334.1,19.08917227]
[1673346803229,25.90128478,1334.2,1334.1,0.08917227]
[1673346803442,26.59241536,1334.2,1334.1,33.0]
[1673346803700,26.59241536,1334.2,1334.1,33.08917227]
[1673346804127,26.59241536,1334.2,1334.1,19.08917227]
[1673346806708,30.7385632,1334.2,1334.1,19.08917227]
[1673346806929,35.0805632,1334.2,1334.1,19.08917227]
[1673346807470,35.0805632,1334.2,1334.1,0.08917227]
[1673346807643,35.0805632,1334.2,1333.7,8.51528883]
[1673346807853,3.848,1334.0,1333.8,26.0]
[1673346808085,22.49043,1333.9,1333.8,26.08917227]
[1673346808294,22.49243,1333.9,1333.8,0.08917227]
[1673346808506,22.49243,1333.9,1333.8,8.0]
[1673346808728,22.49243,1333.9,1333.8,8.08917227]
[1673346808942,22.49243,1333.9,1333.8,20.08917227]
[1673346809482,22.49243,1333.9,1333.8,33.08917227]
[1673346809860,22.49243,1333.9,1333.8,33.08667424]
[1673346810492,14.99562,1333.9,1333.8,33.08667424]
[1673346810952,24.882824,1333.9,1333.8,33.08667424]
[1673346811337,9.889204,1333.9,1333.8,33.08667424]
[1673346812619,24.882824,1333.9,1333.8,33.08667424]
[1673346812840,24.882824,1333.9,1333.8,16.08667424]
[1673346813001,26.223824,1333.9,1333.8,16.08667424]
[1673346813217,26.223824,1333.9,1333.8,0.08667424]
[1673346813440,26.223824,1333.9,1333.7,0.02041656]
[1673346813655,8.83637,1333.8,1333.7,0.02041656]
[1673346813955,8.83837,1333.8,1333.7,0.02041656]
[1673346814808,26.4617774,1333.8,1333.7,0.02041656]
[1673346815993,18.9644074,1333.8,1333.7,0.02041656]
[1673346816385,19.66232761,1333.8,1333.7,0.02041656]
[1673346817225,27.15969761,1333.8,1333.7,0.02041656]
[1673346819838,28.50769761,1333.8,1333.7,0.02041656]
[1673346821039,31.50769761,1333.8,1333.7,0.02041656]
[1673346824085,24.01032761,1333.8,1333.7,0.02041656]
[1673346824326,31.50769761,1333.8,1333.7,0.02041656]
[1673346828298,9.01558761,1333.8,1333.7,0.02041656]
[1673346828512,16.51295761,1333.8,1333.7,0.02041656]
[1673346829119,24.01032761,1333.8,1333.7,0.02041656]
[1673346829355,16.51295761,1333.8,1333.7,0.02041656]
[1673346829865,24.01032761,1333.8,1333.7,0.02041656]
[1673346830028,0.69992021,1333.8,1333.7,1.81941656]
[1673346830251,0.066,1334.0,1333.8,0.002]
[1673346830463,24.81369,1334.1,1333.8,0.002]
[1673346830722,32.30963,1334.1,1333.8,24.002]
[1673346831026,39.80579,1334.1,1333.8,24.08867424]
[1673346831188,39.80579,1334.1,1333.9,31.0]
[1673346831397,39.80579,1334.1,1333.9,31.08667424]
[1673346831662,22.48979,1334.1,1333.9,31.08667424]
[1673346831849,22.48979,1334.1,1333.9,0.08667424]
[1673346832039,22.48979,1334.1,1333.8,0.002]
[1673346832389,22.48979,1334.1,1333.8,0.29674166]
[1673346832708,22.48979,1334.1,1333.8,54.29674166]
[1673346832928,22.48979,1334.1,1333.8,54.3834159]
[1673346833239,22.48979,1334.1,1333.9,24.0]
[1673346833394,22.48979,1334.1,1333.9,24.08667424]
[1673346833601,22.48979,1334.1,1333.9,0.08667424]
[1673346833969,22.48979,1334.1,1333.8,0.29674166]
[1673346834349,22.48979,1334.1,1333.8,28.29674166]
[1673346834566,22.48979,1334.1,1333.9,34.0]
[1673346834915,22.48979,1334.1,1333.9,34.08667424]
[1673346835111,22.4890944,1334.1,1333.9,34.08667424]
[1673346835277,22.4890944,1334.1,1333.9,0.08667424]
[1673346835492,22.4890944,1334.1,1333.8,0.29674166]
[1673346836033,22.4890944,1334.1,1333.8,30.29674166]
[1673346836263,22.4890944,1334.1,1333.8,30.3834159]
[1673346836657,22.4890944,1334.1,1333.9,35.0]
[1673346836903,4.0976,1334.0,1333.9,0.08667424]
[1673346837098,26.20275,1334.0,1333.8,0.002]
[1673346837442,26.20475,1334.0,1333.8,0.002]
[1673346837804,26.20475,1334.0,1333.8,12.002]
[1673346838124,26.20475,1334.0,1333.8,0.08867424]
[1673346838377,30.45059075,1334.0,1333.8,0.002]
[1673346839529,30.45059075,1334.0,1333.8,16.002]
[1673346839747,33.25773859,1334.0,1333.8,16.08867424]
[1673346840277,23.83843,1333.9,1333.8,0.08867424]
[1673346840432,26.64757784,1333.9,1333.8,0.002]
[1673346840778,28.51470004,1333.9,1333.8,0.002]
[1673346841114,29.86270004,1333.9,1333.8,0.002]
[1673346841325,33.66036068,1333.9,1333.8,15.002]
[1673346841639,37.04356068,1333.9,1333.8,15.08867424]
[1673346842637,34.23641284,1333.9,1333.8,15.08867424]
[1673346843070,37.04181097,1333.9,1333.8,15.08867424]
[1673346843312,29.54500097,1333.9,1333.8,15.08867424]
[1673346843489,37.04181097,1333.9,1333.8,15.08867424]
[1673346844107,18.25053033,1333.9,1333.8,15.08867424]
[1673346844319,13.68740813,1333.9,1333.8,15.08867424]
[1673346844527,21.18421813,1333.9,1333.8,15.08867424]
[1673346845836,21.18621813,1333.9,1333.8,15.08667424]
[1673346846016,13.68740813,1333.9,1333.8,15.08867424]
[1673346846228,6.19059813,1333.9,1333.8,15.08867424]
[1673346846840,5.80739813,1333.9,1333.8,15.08867424]
[1673346847048,13.30420813,1333.9,1333.8,15.08867424]
[1673346847679,10.30620813,1333.9,1333.8,31.08667424]
[1673346847890,10.30420813,1333.9,1333.8,31.08867424]